fUSD/lending_fUSD_20240611
["ID","MTS","AMOUNT","RATE_DAILY","PERIOD"]
[329132830,1718128256885,-25370.25,0.00021917,2]
[329132831,1718128256896,-500.0,0.00021917,2]
[329132832,1718128256907,-1155.22,0.00021917,2]
[329132834,1718128256918,-500.0,0.00021917,2]
[329132836,1718128256929,-1649.13,0.00021917,2]
[329132838,1718128256940,-2610.03,0.00021917,2]
[329132840,1718128256951,-500.0,0.00021917,2]
[329132842,1718128256962,-1083.85,0.00021917,2]
[329132844,1718128256973,-500.0,0.00021917,2]
[329132846,1718128256984,-536.12366588,0.00021917,2]
[329132848,1718128256996,-500.0,0.00021917,2]
[329132850,1718128257006,-500.0,0.00021917,2]
[329132852,1718128257017,-525.6979199,0.00021917,2]
[329132854,1718128257028,-500.0,0.00021917,2]
[329132856,1718128257038,-6884.86,0.00021917,2]
[329132858,1718128257049,-513.09,0.00021917,2]
[329132860,1718128257059,-613.13,0.00021917,2]
[329132862,1718128257070,-970.1,0.00021917,2]
[329132864,1718128257081,-383.44445368,0.00021917,2]
[329132866,1718128257092,-1723.35,0.00021917,2]
[329132868,1718128257102,-1724.59,0.00021917,2]
[329132870,1718128257113,-1042.58,0.00021917,2]
[329132872,1718128257124,-534.86434734,0.00021917,2]
[329132874,1718128257136,-151.0,0.00021917,2]
[329132876,1718128257146,-151.0,0.00021917,2]
[329132878,1718128257157,-151.0,0.00021917,2]
[329132880,1718128257167,-500.0,0.00021917,2]
[329132882,1718128257178,-962.68,0.00021917,2]
[329132884,1718128257189,-500.0,0.00021917,2]
[329132886,1718128257201,-500.0,0.00021917,2]
[329132888,1718128257212,-500.0,0.00021917,2]
[329132890,1718128257223,-983.91,0.00021917,2]
[329132892,1718128257238,-2726.41,0.00021917,2]
[329132894,1718128257248,-500.0,0.00021917,2]
[329132896,1718128257259,-500.0,0.00021917,2]
[329132898,1718128257270,-2169.77,0.00021917,2]
[329132900,1718128257281,-40103.99,0.00021917,2]
[329132902,1718128257293,-1757.78,0.00021917,2]
[329132904,1718128257304,-1163.73,0.00021917,2]
[329132906,1718128257315,-463.22190618,0.00021917,2]
[329132908,1718128257326,-500.0,0.00021917,2]
[329132910,1718128257337,-151.0,0.00021917,2]
[329132912,1718128257349,-151.0,0.00021917,2]
[329132914,1718128257360,-790.08,0.00021917,2]
[329132916,1718128257371,-151.0,0.00021917,2]
[329132918,1718128257382,-15006.34,0.00021917,2]
[329132920,1718128257393,-500.0,0.00021917,2]
[329132922,1718128257405,-239.414902,0.00021917,2]
[329132924,1718128257416,-500.0,0.00021917,2]
[329132926,1718128257427,-500.0,0.00021917,2]
[329132928,1718128257439,-151.0,0.00021917,2]
[329132930,1718128257450,-151.0,0.00021917,2]
[329132932,1718128257462,-744.51,0.00021917,2]
[329132934,1718128257473,-2823.47,0.00021917,2]
[329132936,1718128257483,-151.0,0.00021917,2]
[329132938,1718128257494,-500.0,0.00021917,2]
[329132941,1718128257505,-5612.14,0.00021917,2]
[329132943,1718128257516,-1497.6,0.00021917,2]
[329132945,1718128257527,-571.4,0.00021917,2]
[329132947,1718128257538,-544.26,0.00021917,2]
[329132949,1718128257549,-1457.57,0.00021917,2]
[329132951,1718128257568,-2465.25,0.00021917,2]
[329132953,1718128257580,-522.77,0.00021917,2]
[329132955,1718128257591,-500.0,0.00021917,2]
[329132957,1718128257603,-935.12,0.00021917,2]
[329132959,1718128257614,-580.63,0.00021917,2]
[329132961,1718128257625,-2122.28,0.00021917,2]
[329132963,1718128257636,-500.0,0.00021917,2]
[329132965,1718128257647,-1746.28,0.00021917,2]
[329132967,1718128257659,-500.0,0.00021917,2]
[329132969,1718128257670,-1869.91,0.00021917,2]
[329132971,1718128257681,-500.0,0.00021917,2]
[329132973,1718128257692,-1810.39,0.00021917,2]
[329132975,1718128257703,-772.11,0.00021917,2]
[329132977,1718128257715,-612.66,0.00021917,2]
[329132979,1718128257729,-500.0,0.00021917,2]
[329132981,1718128257740,-1123.26,0.00021917,2]
[329132984,1718128257751,-157.87902011,0.00021917,2]
[329132986,1718128257763,-500.0,0.00021917,2]
[329132988,1718128257775,-2286.17,0.00021917,2]
[329132990,1718128257787,-341.04260389,0.00021917,2]
[329132992,1718128257798,-500.0,0.00021917,2]
[329132993,1718128257808,-500.0,0.00021917,2]
[329132994,1718128257823,-500.0,0.00021917,2]
[329132995,1718128257834,-1519.18,0.00021917,2]
[329132996,1718128257845,-500.0,0.00021917,2]
[329132997,1718128257856,-500.0,0.00021917,2]
[329132998,1718128257867,-500.0,0.00021917,2]
[329132999,1718128257878,-500.0,0.00021917,2]
[329133000,1718128257889,-4259.61,0.00021917,2]
[329133002,1718128257900,-1231.53,0.00021917,2]
[329133004,1718128257911,-2004.57,0.00021917,2]
[329133006,1718128257922,-1860.08,0.00021917,2]
[329133008,1718128257933,-691.86,0.00021917,2]
[329133010,1718128257944,-3747.32,0.00021917,2]
[329133012,1718128257954,-513.57,0.00021917,2]
[329133014,1718128257966,-500.0,0.00021917,2]
[329133016,1718128257976,-500.0,0.00021917,2]
[329133018,1718128257987,-1041.33,0.00021917,2]
[329133020,1718128257998,-500.0,0.00021917,2]
[329133022,1718128258009,-500.0,0.00021917,2]
[329133024,1718128258020,-500.0,0.00021917,2]
[329133026,1718128258031,-500.0,0.00021917,2]
[329133028,1718128258042,-500.0,0.00021917,2]
[329133031,1718128258053,-500.0,0.00021917,2]
[329133033,1718128258064,-5731.59,0.00021917,2]
[329133035,1718128258074,-500.0,0.00021917,2]
[329133037,1718128258085,-585.42,0.00021917,2]
[329133039,1718128258095,-1426.07,0.00021917,2]
[329133041,1718128258105,-3726.3,0.00021917,2]
[329133043,1718128258117,-738.63,0.00021917,2]
[329133044,1718128258128,-991.43,0.00021917,2]
[329133047,1718128258139,-500.0,0.00021917,2]
[329133048,1718128258149,-1814.24,0.00021917,2]
[329133050,1718128258160,-366.54,0.00021917,2]
[329133053,1718128258171,-500.0,0.00021917,2]
[329133055,1718128258181,-904.15,0.00021917,2]
[329133057,1718128258192,-2027.63,0.00021917,2]
[329133059,1718128258203,-500.0,0.00021917,2]
[329133061,1718128258216,-151.0,0.00021917,2]
[329133063,1718128258227,-151.0,0.00021917,2]
[329133065,1718128258237,-4176.45,0.00021917,2]
[329133067,1718128258248,-151.0,0.00021917,2]
[329133069,1718128258260,-2327.89,0.00021917,2]
[329133071,1718128258271,-500.0,0.00021917,2]
[329133073,1718128258282,-1250.77,0.00021917,2]
[329133075,1718128258294,-500.0,0.00021917,2]
[329133077,1718128258305,-4704.02,0.00021917,2]
[329133079,1718128258317,-500.0,0.00021917,2]
[329133081,1718128258327,-1922.83,0.00021917,2]
[329133083,1718128258338,-166.65449596,0.00021917,2]
[329133085,1718128258349,-956.22,0.00021917,2]
[329133087,1718128258360,-3502.25,0.00021917,2]
[329133089,1718128258372,-500.0,0.00021917,2]
[329133091,1718128258382,-1340.39,0.00021917,2]
[329133093,1718128258393,-500.0,0.00021917,2]
[329133095,1718128258403,-2487.87,0.00021917,2]
[329133097,1718128258415,-2556.16,0.00021917,2]
[329133099,1718128258426,-6503.12,0.00021917,2]
[329133101,1718128258437,-165.025997,0.00021917,2]
[329133103,1718128258448,-850.52,0.00021917,2]
[329133105,1718128258459,-500.0,0.00021917,2]
[329133107,1718128258470,-2773.95,0.00021917,2]
[329133109,1718128258481,-500.0,0.00021917,2]
[329133111,1718128258492,-500.0,0.00021917,2]
[329133113,1718128258503,-500.0,0.00021917,2]
[329133115,1718128258514,-500.0,0.00021917,2]
[329133117,1718128258525,-2402.36,0.00021917,2]
[329133119,1718128258536,-507.43,0.00021917,2]
[329133121,1718128258547,-500.0,0.00021917,2]
[329133124,1718128258572,-500.0,0.00021917,2]
[329133126,1718128258583,-1575.17,0.00021917,2]
[329133128,1718128258594,-500.0,0.00021917,2]
[329133130,1718128258606,-597.89,0.00021917,2]
[329133132,1718128258617,-1848.48,0.00021917,2]
[329133134,1718128258629,-3748.94,0.00021917,2]
[329133136,1718128258641,-500.0,0.00021917,2]
[329133138,1718128258652,-500.0,0.00021917,2]
[329133140,1718128258663,-500.0,0.00021917,2]
[329133142,1718128258674,-1289.13,0.00021917,2]
[329133144,1718128258685,-500.0,0.00021917,2]
[329133146,1718128258696,-164.899962,0.00021917,2]
[329133148,1718128258709,-871.35,0.00021917,2]
[329133151,1718128258720,-579.91,0.00021917,2]
[329133153,1718128258732,-5417.36,0.00021917,2]
[329133154,1718128258747,-1828.11,0.00021917,2]
[329133157,1718128258758,-725.54,0.00021917,2]
[329133159,1718128258770,-577.12248817,0.00021917,2]
[329133161,1718128258783,-500.0,0.00021917,2]
[329133163,1718128258794,-10338.69,0.00021917,2]
[329133165,1718128258804,-9189.69,0.00021917,2]
[329133167,1718128258815,-3059.76,0.00021917,2]
[329133169,1718128258826,-3651.64,0.00021917,2]
[329133171,1718128258836,-1079.91,0.00021917,2]
[329133173,1718128258846,-500.0,0.00021917,2]
[329133175,1718128258856,-533.14,0.00021917,2]
[329133177,1718128258867,-1383.79,0.00021917,2]
[329133179,1718128258878,-5045.73,0.00021917,2]
[329133181,1718128258888,-500.0,0.00021917,2]
[329133183,1718128258897,-500.0,0.00021917,2]
[329133186,1718128258909,-2164.87,0.00021917,2]
[329133188,1718128258919,-1970.07,0.00021917,2]
[329133190,1718128258930,-570.33,0.00021917,2]
[329133192,1718128258941,-1817.1,0.00021917,2]
[329133194,1718128258952,-500.0,0.00021917,2]
[329133196,1718128258962,-151.0,0.00021917,2]
[329133198,1718128258974,-151.0,0.00021917,2]
[329133200,1718128258984,-3571.04,0.00021917,2]
[329133202,1718128258995,-151.0,0.00021917,2]
[329133204,1718128259005,-3007.63,0.00021917,2]
[329133206,1718128259016,-522.25074498,0.00021917,2]
[329133208,1718128259026,-3156.3,0.00021917,2]
[329133210,1718128259037,-508.09942469,0.00021917,2]
[329133212,1718128259047,-500.0,0.00021917,2]
[329133214,1718128259058,-4105.83,0.00021917,2]
[329133216,1718128259068,-500.0,0.00021917,2]
[329133218,1718128259079,-4872.81,0.00021917,2]
[329133220,1718128259089,-608.61,0.00021917,2]
[329133223,1718128259100,-500.0,0.00021917,2]
[329133225,1718128259110,-1129.49,0.00021917,2]
[329133227,1718128259120,-10024.42,0.00021917,2]
[329133229,1718128259131,-500.0,0.00021917,2]
[329133231,1718128259142,-500.0,0.00021917,2]
[329133233,1718128259152,-500.0,0.00021917,2]
[329133235,1718128259162,-4198.91,0.00021917,2]
[329133237,1718128259172,-555.19657261,0.00021917,2]
[329133239,1718128259182,-151.0,0.00021917,2]
[329133241,1718128259193,-7261.98,0.00021917,2]
[329133243,1718128259203,-151.0,0.00021917,2]
[329133245,1718128259213,-5132.04,0.00021917,2]
[329133247,1718128259224,-151.0,0.00021917,2]
[329133249,1718128259235,-820.75,0.00021917,2]
[329133251,1718128259246,-500.0,0.00021917,2]
[329133254,1718128259258,-1471.64,0.00021917,2]
[329133256,1718128259268,-927.85,0.00021917,2]
[329133258,1718128259279,-500.0,0.00021917,2]
[329133260,1718128259290,-500.0,0.00021917,2]
[329133262,1718128259301,-641.22,0.00021917,2]
[329133264,1718128259311,-500.0,0.00021917,2]
[329133266,1718128259322,-500.0,0.00021917,2]
[329133268,1718128259333,-500.0,0.00021917,2]
[329133270,1718128259343,-3321.77,0.00021917,2]
[329133272,1718128259354,-413.85187595,0.00021917,2]
[329133314,1718128259784,-927.48812405,0.00021917,2]
[329133316,1718128259794,-889.6,0.00021917,2]
[329133318,1718128259805,-649.62,0.00021917,2]
[329133319,1718128259815,-422.65739264,0.00021917,2]
[329133686,1718128265138,469.0,0.00021908,15]
[329133687,1718128265328,469.0,0.00021898,15]
[329133688,1718128265465,469.0,0.00021888,15]
[329133689,1718128265505,150.5,0.00021908,15]
[329133690,1718128265605,150.5,0.00021898,15]
[329133691,1718128266104,150.5,0.00021888,15]
[329133692,1718128266530,150.5,0.0002279,15]
[329133693,1718128266896,234.0,0.0002278,15]
[329133694,1718128267048,469.0,0.0002279,15]
[329133695,1718128267452,469.0,0.0002278,15]
[329133696,1718128268064,469.0,0.0002277,15]
[329133697,1718128268752,469.0,0.0002369,15]
[329133698,1718128269256,469.0,0.0002368,15]
[329133699,1718128269720,469.0,0.0002463,15]
[329133700,1718128270288,478.0,0.0002462,15]
[329133702,1718128383856,350.0,0.00022044,15]
[329133703,1718128384334,350.0,0.00022034,15]
[329133704,1718128384881,350.0,0.00022024,15]
[329133705,1718128385482,350.0,0.00023003,15]
[329133706,1718128385939,350.0,0.00022993,15]
[329133707,1718128386463,350.0,0.00022983,15]
[329133708,1718128386953,350.0,0.0002409,15]
[329133709,1718128387473,350.0,0.0002408,15]
[329133710,1718128387996,350.0,0.00024912,15]
[329133711,1718128388495,352.0,0.00024902,15]
[329133714,1718128832305,7094.53349229,0.00022624,30]
[329133715,1718128858915,350.15108588,0.00021592,60]
[329133716,1718129157627,208.86579339,0.00012489,2]
[329133717,1718129157655,4000.0,0.00012489,2]
[329133718,1718129157683,1209.44272061,0.00012489,2]
[329133719,1718129179278,299.78592176,0.00012449,2]
[329133720,1718129184282,299.78592174,0.0001245,2]
[329133721,1718129189972,299.78592174,0.0001245,2]
[329133722,1718129204998,1891.19951415,0.00012489,2]
[329133723,1718129205026,4000.0,0.00012489,2]
[329133724,1718129205059,4000.0,0.00012489,2]
[329133725,1718129205086,4000.0,0.00012489,2]
[329133726,1718129205114,4000.0,0.00012489,2]
[329133727,1718129205146,2383.17286462,0.00012489,2]
[329133728,1718129210010,410.83715221,0.00012489,2]
[329133729,1718129211687,331.19214549,0.00012447,2]
[329133730,1718129212791,874.79783768,0.00012489,2]
[329133731,1718129221309,201.76,0.00010959,2]
[329133732,1718129231871,168.14,0.00010959,2]
[329133733,1718129241371,-399.939739,0.00012178,2]
[329133734,1718129241423,-112.88189047,0.00012237,2]
[329133735,1718129241853,499.89358872,0.00011865,2]
[329133736,1718129242483,765.30371384,0.00010959,2]
[329133737,1718129242512,75.39628616,0.00010959,2]
[329133738,1718129243158,-425.0255944,0.00012237,2]
[329133739,1718129243181,-155.0,0.00012237,2]
[329133740,1718129243205,-1487.76688561,0.00012237,2]
[329133741,1718129248157,-2804.80477558,0.00012237,2]
[329133742,1718129248183,-730.64442167,0.00012238,2]
[329133743,1718129248211,-659.17833501,0.00012238,2]
[329133744,1718129248235,-155.0,0.00012238,2]
[329133745,1718129248259,-5584.2730595,0.00012238,2]
[329133746,1718129248282,-296.86150818,0.00012238,2]
[329133747,1718129248306,-788.68901012,0.00012239,2]
[329133748,1718129251497,3924.60371384,0.00010959,2]
[329133749,1718129251526,2654.60707237,0.00010959,2]
[329133750,1718129252444,410.83715221,0.00010959,2]
[329133751,1718129253317,934.55577542,0.00010959,2]
[329133752,1718129253345,4000.0,0.00010959,2]
[329133753,1718129253373,4000.0,0.00010959,2]
[329133754,1718129253411,4000.0,0.00010959,2]
[329133755,1718129253553,4000.0,0.00010959,2]
[329133756,1718129253658,4000.0,0.00010959,2]
[329133757,1718129253761,3732.37310355,0.00010959,2]
[329133758,1718129257685,267.62689645,0.00010958,2]
[329133759,1718129257713,223.07902238,0.00010958,2]
[329133760,1718129263006,2456.7535948,8.219e-05,2]
[329133761,1718129267973,155.0,0.00010959,2]
[329133762,1718129274449,410.83715221,0.00010959,2]
[329133763,1718129274620,754.33023061,0.00010959,2]
[329133766,1718129365171,-253.54627136,0.00010852,2]
[329133767,1718129371198,-2569.71323418,0.00010852,2]
[329133768,1718129371222,-2000.25333624,0.00010852,2]
[329133769,1718129371248,-2195.01899183,0.00010852,2]
[329133770,1718129371272,-155.0,0.00010853,2]
[329133771,1718129371296,-518.83621496,0.00010853,2]
[329133772,1718129371323,-715.98008293,0.00010853,2]
[329133773,1718129371348,-3066.55001275,0.00010853,2]
[329133774,1718129371372,-719.5469304,0.00010854,2]
[329133775,1718129371396,-155.0,0.00010854,2]
[329133776,1718129371423,-155.0,0.00010854,2]
[329133777,1718129371449,-300.0,0.00010854,2]
[329133778,1718129371474,-150.0,0.00010854,2]
[329133779,1718129371498,-625.97046574,0.00010854,2]
[329133780,1718129371523,-522.69878769,0.00010855,2]
[329133781,1718129371547,-328.09103155,0.00010855,2]
[329133782,1718129371571,-263.89187326,0.00010855,2]
[329133783,1718129371593,-362.93259815,0.00010855,2]
[329133784,1718129371616,-155.0,0.00010855,2]
[329133785,1718129371639,-186.11592372,0.00010855,2]
[329133786,1718129371663,-3893.9184449,0.00010855,2]
[329133787,1718129371689,-1277.45304415,0.00010856,2]
[329133788,1718129371715,-545.9510705,0.00010856,2]
[329133789,1718129371739,-155.0,0.00010856,2]
[329133790,1718129371764,-364.20577069,0.00010856,2]
[329133791,1718129371789,-1302.76719431,0.00010856,2]
[329133792,1718129371814,-268.79574159,0.00010856,2]
[329133793,1718129371839,-1764.50661334,0.00010859,2]
[329133794,1718129371865,-201.76,0.00010959,2]
[329133795,1718129371892,-168.13,0.00010959,2]
[329133796,1718129371920,-840.67,0.00010959,2]
[329133797,1718129371947,-17867.6928451,0.00010959,2]
[329133798,1718129371970,-155.0,0.00010959,2]
[329133799,1718129372002,-410.83715221,0.00010959,2]
[329133800,1718129374085,-226.58,0.0001142,2]
[329133801,1718129374114,-20856.13511301,0.0001142,2]
[329133802,1718129376885,1467.0,0.00010852,2]
[329133803,1718129378838,300.0,0.00027736,120]
[329133804,1718129388467,410.83715221,0.00010959,2]
[329133805,1718129398118,-4292.57166119,0.00011418,2]
[329133806,1718129398415,-659.17833501,0.00011419,2]
[329133807,1718129398451,-3043.86488699,0.0001142,2]
[329133808,1718129398487,-1395.66,0.00011499,2]
[329133809,1718129398514,-1302.76719431,0.00011863,2]
[329133810,1718129398528,-1034.67,0.00011887,2]
[329133811,1718129398538,-420.0,0.00011929,2]
[329133812,1718129398549,-210.0,0.00011939,2]
[329133813,1718129398559,-1325.13446688,0.00012239,2]
[329133814,1718129398582,-189.42327923,0.00012239,2]
[329133815,1718129398592,-160.45929932,0.00012345,2]
[329133816,1718129398603,-309.29575646,0.00012479,2]
[329133817,1718129398677,-3043.86488699,0.00012479,2]
[329133818,1718129398696,-753.88905919,0.00012479,2]
[329133819,1718129398706,-217.40040456,0.00012487,2]
[329133820,1718129398717,-424.37053625,0.00012487,2]
[329133821,1718129398742,-81.73370121,0.00012487,2]
[329133822,1718129398753,-307.14978371,0.00012487,2]
[329133823,1718129398764,-285.432224,0.00012487,2]
[329133824,1718129398775,-156.63790936,0.00012487,2]
[329133825,1718129398785,-399.49661534,0.00012487,2]
[329133826,1718129404507,338.33901504,0.00010959,2]
[329133827,1718129404536,72.49813717,0.00010959,2]
[329133836,1718129431932,-156.73863442,0.00011417,2]
[329133837,1718129431942,-293.0,0.00011418,2]
[329133838,1718129431952,-257.55190198,0.00011863,2]
[329133839,1718129431963,-157.948,0.00012135,2]
[329133840,1718129431973,-161.94729934,0.00012386,2]
[329133841,1718129431983,-3529.01322666,0.00012386,2]
[329133842,1718129431993,-300.0,0.00012486,2]
[329133843,1718129432017,-486.76594764,0.00012487,2]
[329133844,1718129432036,-2810.96529771,0.00012487,2]
[329133845,1718129432049,-450.95924719,0.00012487,2]
[329133846,1718129432060,-155.0,0.00012487,2]
[329133847,1718129432072,-1247.36037009,0.00012487,2]
[329133848,1718129432084,-327.58211536,0.00012487,2]
[329133849,1718129432104,-208.45604471,0.00012487,2]
[329133850,1718129432115,-492.22096118,0.00012487,2]
[329133851,1718129432129,-283.4026639,0.00012487,2]
[329133852,1718129432140,-281.35964641,0.00012487,2]
[329133853,1718129432155,-263.49215154,0.00012487,2]
[329133854,1718129432166,-2823.25950554,0.00012487,2]
[329133855,1718129432177,-364.20577069,0.00012487,2]
[329133856,1718129432190,-421.86384512,0.00012487,2]
[329133857,1718129432201,-155.0,0.00012487,2]
[329133858,1718129432211,-2195.01899183,0.00012487,2]
[329133859,1718129432223,-1277.45304415,0.00012487,2]
[329133860,1718129432236,-3066.55001275,0.00012487,2]
[329133861,1718129432247,-273.90596587,0.00012487,2]
[329133862,1718129432261,-325.48556434,0.00012487,2]
[329133863,1718129432273,-625.97046574,0.00012487,2]
[329133864,1718129432284,-715.98008293,0.00012487,2]
[329133865,1718129432296,-2000.25333624,0.00012487,2]
[329133866,1718129432310,-328.69414495,0.00012487,2]
[329133867,1718129432321,-942.66986521,0.00012487,2]
[329133868,1718129432331,-545.75067402,0.00012487,2]
[329133869,1718129432342,-403.90067566,0.00012487,2]
[329133870,1718129432352,-253.72066577,0.00012487,2]
[329133871,1718129432362,-618.9019898,0.00012487,2]
[329133872,1718129432374,-155.0,0.00012487,2]
[329133873,1718129432384,-155.20249672,0.00012487,2]
[329133874,1718129432396,-500.0,0.00012487,2]
[329133875,1718129432407,-3320.61172128,0.00012487,2]
[329133876,1718129432419,-269.30164163,0.00012487,2]
[329133877,1718129432430,-755.18299949,0.00012487,2]
[329133878,1718129432441,-156.46518298,0.00012487,2]
[329133879,1718129432452,-19145.6623386,0.00012487,2]
[329133910,1718129433062,-59013.74059863,0.00012487,2]
[329133911,1718129433074,-41801.30093121,0.00012487,2]
[329133912,1718129433087,-1102.64003743,0.00012487,2]
[329133913,1718129433140,-28007.23898423,0.00012487,2]
[329133914,1718129433159,-9235.78643565,0.00012487,2]
[329133915,1718129433205,-810.52951449,0.00012487,2]
[329133916,1718129433258,-425.4028204,0.00012487,2]
[329133917,1718129433270,-635.97483763,0.00012487,2]
[329133918,1718129433284,-386.97857912,0.00012487,2]
[329133919,1718129433319,-1054.71998718,0.00012487,2]
[329133922,1718129438520,-544.49802541,0.00012487,2]
[329133923,1718129438534,-392.87031089,0.00012487,2]
[329133924,1718129438548,-9878.07112303,0.00012487,2]
[329133925,1718129438560,-377.78463481,0.00012487,2]
[329133926,1718129438571,-1625.08193792,0.00012488,2]
[329133927,1718129438581,-5684.67242801,0.00012488,2]
[329133928,1718129438594,-4053.13635835,0.00012489,2]
[329133929,1718129438606,-1000.0,0.0001249,2]
[329133930,1718129438617,-2666.08,0.00012544,2]
[329133931,1718129438627,-1367.74,0.00012546,2]
[329133932,1718129438641,-539.65,0.00012548,4]
[329133933,1718129438652,-150.99,0.00012551,2]
[329133934,1718129438665,-282.84,0.00012724,2]
[329133935,1718129438677,-165.14,0.00012789,2]
[329133936,1718129438689,-293.0,0.00013133,2]
[329133937,1718129438699,-763.2,0.00013186,2]
[329133938,1718129438710,-499.99,0.00013239,2]
[329133939,1718129438721,-12613.8661,0.00013598,2]
[329133940,1718129438732,-3480.0,0.0001361,2]
[329133941,1718129438747,-1000.0,0.00014052,2]
[329133942,1718129438760,-2021.0,0.00014175,2]
[329133943,1718129438773,-1034.67,0.00014626,2]
[329133944,1718129438784,-358.20152403,0.00015,2]
[329133945,1718129438796,-200.28049749,0.00015,2]
[329133946,1718129438807,-200.0,0.00015,2]
[329133947,1718129438820,-1000.0,0.00015613,2]
[329133948,1718129438833,-528.38,0.00016163,2]
[329133949,1718129438845,-753.63261142,0.00016948,2]
[329133950,1718129438858,-1000.0,0.00017174,2]
[329133951,1718129438870,-215.85,0.00017248,2]
[329133952,1718129438881,-408.52,0.00017342,2]
[329133953,1718129438893,-1034.67,0.00017366,2]
[329133954,1718129438906,-410.53,0.00017431,2]
[329133955,1718129438917,-500.0,0.00017462,2]
[329133956,1718129438929,-200.0,0.00017525,2]
[329133957,1718129438943,-921.44,0.00017535,2]
[329133958,1718129438954,-200.0,0.00017606,2]
[329133959,1718129438968,-1235.15,0.00017618,2]
[329133960,1718129438979,-751.9144439,0.00017751,2]
[329133961,1718129438989,-5138.83,0.00017794,2]
[329133962,1718129439018,-250.0,0.00017848,2]
[329133963,1718129439032,-250.0,0.00017933,2]
[329133964,1718129439043,-1337.09,0.00018044,2]
[329133965,1718129439057,-662.26,0.00018065,2]
[329133966,1718129439068,-200.0,0.00018183,2]
[329133967,1718129439080,-410.53,0.00018303,2]
[329133968,1718129439096,-167.1,0.00018323,2]
[329133969,1718129439107,-528.38,0.00018427,2]
[329133970,1718129439119,-164.36,0.00018478,2]
[329133971,1718129439130,-164.36,0.00018501,2]
[329133972,1718129439143,-164.36,0.00018524,2]
[329133973,1718129439157,-164.36,0.00018547,2]
[329133974,1718129439179,-164.36,0.0001857,2]
[329133975,1718129439191,-1000.0,0.00018735,2]
[329133976,1718129439201,-757.0,0.000188,2]
[329133977,1718129439217,-2426.0,0.000188,2]
[329133978,1718129439240,-410.53,0.00019175,2]
[329133979,1718129439259,-380.0,0.00019178,2]
[329133980,1718129439273,-500.0,0.00019178,2]
[329133981,1718129439285,-500.0,0.00019178,2]
[329133982,1718129439297,-632.4545019,0.00019178,2]
[329133983,1718129439315,-500.0,0.00019178,2]
[329133984,1718129439338,-200.62290041,0.00019178,7]
[329133985,1718129439354,-497.02264123,0.00019217,2]
[329133986,1718129439367,-233.72586596,0.00019433,2]
[329133987,1718129439378,-752.03196948,0.00019433,2]
[329133988,1718129439389,-167.0,0.00019758,2]
[329133989,1718129439400,-351.84654694,0.0002,2]
[329133990,1718129439410,-1640.81683342,0.0002,5]
[329133991,1718129439424,-262.96555812,0.0002,2]
[329133992,1718129439434,-155.0,0.0002,2]
[329133993,1718129439446,-410.53,0.00020046,2]
[329133994,1718129439457,-226.7178388,0.000201,2]
[329133995,1718129439468,-528.38,0.00020691,2]
[329133996,1718129439479,-158.986,0.00020868,2]
[329133997,1718129439489,-410.53,0.00020918,2]
[329133998,1718129439499,-167.1,0.00021376,2]
[329133999,1718129439510,-500.0,0.000214,7]
[329134000,1718129439521,-300.0,0.000214,7]
[329134001,1718129439532,-1003.04803537,0.00021492,2]
[329134002,1718129439543,-1000.0,0.00021492,2]
[329134003,1718129439554,-2500.0,0.00021492,2]